bitfinex-derivatives/quotes_SOLF0:USTF0_20250630
["timestamp","ask_amount","ask_price","bid_price","bid_amount"]
[1751250878218,5.2457,152.46,152.43,13.31830806]
[1751250878519,9.32854163,152.45,152.43,13.31830806]
[1751250878718,5.2457,152.46,152.43,13.31830806]
[1751250878920,9.32854163,152.45,152.43,13.31830806]
[1751250879121,5.2457,152.46,152.43,13.31830806]
[1751250879324,9.32854163,152.45,152.43,13.31830806]
[1751250879824,5.2457,152.46,152.43,13.31830806]
[1751250880021,9.32854163,152.45,152.44,5.2461]
[1751250880930,7.18473327,152.47,152.44,5.2461]
[1751250881132,9.32854163,152.45,152.43,13.31820806]
[1751250881420,9.32854163,152.45,152.43,11.37867479]
[1751250881626,5.2455,152.46,152.43,13.31820806]
[1751250881826,9.32854163,152.45,152.43,13.31820806]
[1751250882632,5.2455,152.46,152.43,13.31820806]
[1751250882829,9.32854163,152.45,152.43,13.31820806]
[1751250883032,5.2455,152.46,152.43,13.31820806]
[1751250883230,9.32854163,152.45,152.43,13.31820806]
[1751250883531,5.2455,152.46,152.43,13.31820806]
[1751250883734,9.32854163,152.45,152.43,13.31820806]
[1751250883936,5.2455,152.46,152.43,13.31820806]
[1751250884136,9.32854163,152.45,152.43,13.31820806]
[1751250884336,5.2455,152.46,152.43,13.31820806]
[1751250884537,9.32854163,152.45,152.43,13.31820806]
[1751250885237,9.32854163,152.45,152.44,6.13237479]
[1751250885438,5.2455,152.46,152.44,6.13237479]
[1751250885640,9.32854163,152.45,152.44,6.13237479]
[1751250885841,5.2455,152.46,152.44,6.13237479]
[1751250886041,9.32854163,152.45,152.44,6.13237479]
[1751250886234,5.2455,152.46,152.44,6.13237479]
[1751250886434,9.32854163,152.45,152.44,6.13237479]
[1751250886636,5.2455,152.46,152.44,6.13237479]
[1751250886835,9.32854163,152.45,152.43,13.31820806]
[1751250887842,5.2455,152.46,152.43,13.31820806]
[1751250888041,9.32854163,152.45,152.43,13.31820806]
[1751250888242,5.2455,152.46,152.43,13.31820806]
[1751250888444,9.32854163,152.45,152.43,13.31820806]
[1751250888642,9.32854163,152.45,152.44,5.2461]
[1751250888846,5.2451,152.47,152.43,8.07190806]
[1751250889143,9.32854163,152.45,152.43,8.07026897]
[1751250889743,1.93789418,152.47,152.43,8.07026897]
[1751250889942,9.32854163,152.45,152.43,13.31656897]
[1751250890142,9.32854163,152.45,152.43,11.37867479]
[1751250890344,5.2454,152.46,152.43,13.31656897]
[1751250890643,9.32854163,152.45,152.43,13.31656897]
[1751250891443,5.2454,152.46,152.43,13.31656897]
[1751250891743,9.32854163,152.45,152.43,13.31656897]
[1751250892644,5.2454,152.46,152.43,13.31656897]
[1751250892845,9.32854163,152.45,152.43,13.31656897]
[1751250893041,5.2454,152.46,152.43,13.31656897]
[1751250893246,9.32854163,152.45,152.44,5.2461]
[1751250893743,5.2452,152.47,152.44,5.2461]
[1751250893942,9.32854163,152.45,152.44,5.2461]
[1751250894342,5.2452,152.47,152.43,13.31656897]
[1751250894543,9.32854163,152.45,152.43,13.31656897]
[1751250894748,5.2452,152.47,152.43,13.31656897]
[1751250894946,9.32854163,152.45,152.43,13.31656897]
[1751250895246,5.2452,152.47,152.43,13.31656897]
[1751250895447,9.32854163,152.45,152.43,13.31656897]
[1751250895646,5.2452,152.47,152.43,13.31656897]
[1751250895848,9.32854163,152.45,152.43,13.31656897]
[1751250896049,5.2452,152.47,152.43,13.31656897]
[1751250896350,9.32854163,152.45,152.43,13.31656897]
[1751250896950,5.2452,152.47,152.43,13.31656897]
[1751250897150,9.32854163,152.45,152.43,13.31656897]
[1751250897345,5.2452,152.47,152.44,6.13237479]
[1751250897547,9.32854163,152.45,152.44,6.13237479]
[1751250897845,5.2452,152.47,152.44,6.13237479]
[1751250898149,9.32854163,152.45,152.44,6.13237479]
[1751250898349,5.2452,152.47,152.44,6.13237479]
[1751250898550,9.32854163,152.45,152.44,6.13237479]
[1751250899051,5.2455,152.46,152.44,6.13237479]
[1751250899250,9.32854163,152.45,152.44,6.13237479]
[1751250899450,5.2455,152.46,152.44,6.13237479]
[1751250899650,9.32854163,152.45,152.44,6.13237479]
[1751250899853,9.32854163,152.46,152.44,6.13237479]
[1751250900051,9.32854163,152.46,152.45,6.13548671]
[1751250900244,5.2449,152.48,152.45,6.13548671]
[1751250900442,9.32854163,152.46,152.45,6.13548671]
[1751250900845,7.18249418,152.49,152.45,5.2456]
[1751250901049,9.32854163,152.46,152.45,13.32081794]
[1751250901250,9.32854163,152.46,152.45,11.38292376]
[1751250901552,7.1822507,152.49,152.45,11.38292376]
[1751250901750,9.32854163,152.46,152.45,5.2456]
[1751250901949,9.32854163,152.46,152.45,11.3844039]
[1751250902249,7.1822507,152.49,152.45,11.3844039]
[1751250902550,9.32854163,152.46,152.45,11.3844039]
[1751250902752,9.32854163,152.47,152.45,11.3844039]
[1751250903051,9.32854163,152.47,152.45,6.1388039]
[1751250903851,11.26619233,152.46,152.44,6.1388039]
[1751250904050,9.32854163,152.45,152.44,6.1388039]
[1751250904445,9.32854163,152.45,152.44,11.3849039]
[1751250904943,9.32854163,152.45,152.44,6.1388039]
[1751250907753,14.57434163,152.45,152.44,6.1388039]
[1751250909548,9.32854163,152.45,152.44,6.1388039]
[1751250911051,9.32854163,152.45,152.43,13.3228546]
[1751250912156,9.32854163,152.45,152.44,5.2461]
[1751250912457,9.32854163,152.45,152.43,8.0764546]
[1751250912751,6.14171188,152.5,152.44,1.9376507]
[1751250912955,9.32854163,152.47,152.46,6.1388039]
[1751250913353,1.9376507,152.5,152.46,6.1388039]
[1751250913554,9.32854163,152.47,152.46,6.1388039]
[1751250914056,4.7106,152.53,152.46,13.32136295]
[1751250914350,4.7106,152.53,152.47,6.1388039]
[1751250914351,9.32854163,152.49,152.47,6.1388039]
[1751250914556,14.57304163,152.49,152.47,6.1388039]
[1751250914760,5.2445,152.49,152.47,6.1388039]
[1751250915358,7.18175313,152.49,152.47,6.1388039]
[1751250916062,9.32854163,152.48,152.47,6.1388039]
[1751250916358,7.18175313,152.49,152.46,11.3840039]
[1751250916558,9.32854163,152.48,152.46,11.3840039]
[1751250917058,7.18175313,152.49,152.46,11.3840039]
[1751250917260,9.32854163,152.48,152.46,11.3840039]
[1751250918662,9.32854163,152.48,152.46,5.2452]
[1751250919461,11.26579476,152.48,152.45,6.1388039]
[1751250919662,11.26579476,152.46,152.43,6.1388039]
[1751250919865,11.26579476,152.45,152.43,6.1388039]
[1751250920068,16.51179476,152.45,152.43,6.1388039]
[1751250921769,16.51179476,152.45,152.42,40.27605703]
[1751250922160,16.51179476,152.45,152.42,45.52255703]
[1751250922568,16.51179476,152.45,152.42,43.5853039]
[1751250924867,1.93725313,152.43,152.42,38.3388039]
[1751250925066,11.26579476,152.43,152.42,32.2]
[1751250925262,11.26579476,152.43,152.41,6.1388039]
[1751250925462,1.93725313,152.42,152.41,6.1388039]
[1751250926668,7.18405313,152.42,152.4,6.1388039]
[1751250926868,1.93725313,152.41,152.39,43.5265039]
[1751250927165,7.18405313,152.42,152.39,43.5265039]
[1751250927767,7.18405313,152.42,152.4,5.2474]
[1751250928069,1.93725313,152.42,152.39,38.2788039]
[1751250928764,11.26579476,152.4,152.39,32.14]
[1751250929164,11.26579476,152.4,152.37,6.1388039]
[1751250929363,11.26579476,152.4,152.37,8.07605703]
[1751250929765,11.26579476,152.4,152.39,5.2478]
[1751250930172,9.32854163,152.4,152.39,5.2478]
[1751250932273,1.93725313,152.42,152.41,5.2472]
[1751250932772,11.26579476,152.42,152.41,5.2472]
[1751250934276,9.32854163,152.42,152.41,5.2472]
[1751250934472,32.14,152.46,152.44,5.2461]
[1751250934675,9.32854163,152.42,152.4,1.93725313]
[1751250935068,1.93725313,152.44,152.4,1.93725313]
[1751250935269,9.32854163,152.42,152.41,5.2472]
[1751250935464,9.32854163,152.44,152.41,1.93725313]
[1751250935667,1.93725313,152.48,152.43,1.93725313]
[1751250935873,1.93725313,152.48,152.44,1.93725313]
[1751250936072,9.32854163,152.47,152.46,1.93725313]
[1751250936673,9.32854163,152.47,152.46,7.18265313]
[1751250936875,50.39233097,152.49,152.46,1.93725313]
[1751250937072,9.32854163,152.48,152.47,7.18235313]
[1751250937876,9.32854163,152.48,152.47,5.2451]
[1751250939570,9.81948595,152.53,152.5,5.2439]
[1751250939971,9.32854163,152.51,152.5,5.2439]
[1751250942679,2.349,152.53,152.51,5.2435]
[1751250943081,9.32854163,152.52,152.51,5.2435]
[1751250946688,5.242,152.57,152.51,3.02648595]
[1751250946880,1.25384163,152.54,152.52,32.14]
[1751250947081,3.02648595,152.58,152.52,32.14]
[1751250947285,1.25384163,152.54,152.53,5.243]
[1751250947686,8.26788595,152.58,152.54,5.2424]
[1751250948087,1.25384163,152.55,152.54,5.2424]
[1751250948587,1.25384163,152.55,152.52,32.14]
[1751250948888,1.25384163,152.54,152.52,32.14]
[1751250949389,1.25384163,152.54,152.52,37.3831]
[1751250951491,5.2428,152.54,152.52,32.14]
[1751250951790,6.8033,152.59,152.49,32.2]
[1751250951791,1.25384163,152.53,152.49,32.2]
[1751250951998,1.25384163,152.52,152.49,32.2]
[1751250953100,1.25384163,152.52,152.5,5.2438]
[1751250953594,1.25384163,152.52,152.49,37.4442]
[1751250953897,1.25384163,152.51,152.49,37.4442]
[1751250954195,1.25384163,152.51,152.5,5.2441]
[1751250955796,1.25384163,152.51,152.49,37.4443]
[1751250957194,1.25384163,152.5,152.46,32.2]
[1751250957498,1.25384163,152.49,152.46,32.2]
[1751250957889,5.244,152.51,152.47,5.2448]
[1751250958092,1.25384163,152.49,152.47,5.2448]
[1751250958500,5.2441,152.5,152.47,5.2448]
[1751250958799,1.25384163,152.49,152.47,5.2448]
[1751250959396,5.2441,152.5,152.47,5.2448]
[1751250959598,1.25384163,152.49,152.47,5.2448]
[1751250959797,5.2441,152.5,152.47,5.2448]
[1751250960096,1.25384163,152.49,152.47,5.2448]
[1751250960298,1.25384163,152.48,152.43,80.64030157]
[1751250960603,1.25384163,152.45,152.41,41.36528985]
[1751250960902,1.25384163,152.44,152.42,5.2465]
[1751250961399,5.2458,152.45,152.42,5.2465]
[1751250961601,1.25384163,152.44,152.43,5.2465]
[1751250962100,5.2455,152.46,152.43,5.2465]
[1751250962400,1.25384163,152.44,152.42,5.2467]
[1751250962896,5.2458,152.45,152.42,5.2467]
[1751250963100,1.25384163,152.44,152.42,5.2467]
[1751250963299,5.2458,152.45,152.42,5.2467]
[1751250963501,1.25384163,152.44,152.42,5.2467]
[1751250963702,5.2458,152.45,152.42,5.2467]
[1751250963897,1.25384163,152.44,152.42,5.2467]
[1751250964304,8.27208595,152.46,152.42,5.2467]
[1751250964600,1.25384163,152.44,152.42,5.2467]
[1751250965102,8.27208595,152.46,152.42,5.2467]
[1751250965295,1.25384163,152.44,152.42,5.2467]
[1751250965902,8.27208595,152.46,152.43,5.2463]
[1751250966100,1.25384163,152.44,152.43,5.2463]
[1751250966298,3.02648595,152.49,152.42,3.02648595]
[1751250966601,1.25384163,152.46,152.44,5.246]
[1751250966993,5.245,152.48,152.44,5.246]
[1751250967194,1.25384163,152.46,152.44,5.246]
[1751250967900,5.245,152.48,152.44,5.246]
[1751250968101,1.25384163,152.48,152.42,3.02648595]
[1751250968302,1.25384163,152.48,152.44,3.02648595]
[1751250968701,1.25384163,152.48,152.45,5.2456]
[1751250968702,6.49864163,152.48,152.45,5.2456]
[1751250969400,6.49864163,152.48,152.44,8.27248595]
[1751250969597,5.2451,152.47,152.44,8.27248595]
[1751250970809,5.2449,152.48,152.44,8.27248595]
[1751250971006,1.25384163,152.47,152.44,5.246]
[1751250971907,1.25384163,152.46,152.43,5.2463]
[1751250972604,5.2451,152.47,152.43,5.2463]
[1751250972799,1.25384163,152.46,152.44,5.2461]
[1751250973705,1.25384163,152.46,152.45,5.2458]
[1751250974708,5.2445,152.49,152.46,5.2454]
[1751250975206,1.25384163,152.48,152.47,5.2451]
[1751250975407,1.25384163,152.48,152.44,3.02648595]
[1751250976004,1.25384163,152.48,152.46,5.2452]
[1751250978905,1.25384163,152.48,152.45,32.22]
[1751250979106,5.2444,152.5,152.45,32.22]
[1751250979306,1.25384163,152.48,152.45,32.22]
[1751250979810,5.2444,152.5,152.47,5.2451]
[1751250980014,1.25384163,152.48,152.47,5.2451]
[1751250980211,5.2444,152.5,152.47,5.2451]
[1751250980413,1.25384163,152.49,152.47,5.2451]
[1751250985811,6.49844163,152.49,152.45,32.22]
[1751250986412,1.25384163,152.49,152.47,5.2451]
[1751250995425,1.25384163,152.49,152.48,5.2447]
[1751250996325,1.25384163,152.49,152.47,5.2449]
[1751251002625,5.2442,152.5,152.47,5.2449]
[1751251002826,1.25384163,152.49,152.47,5.2449]
[1751251003424,1.25384163,152.49,152.47,11.35053824]
[1751251004427,7.18113449,152.51,152.48,5.2446]
[1751251004626,1.25384163,152.49,152.48,5.2446]
[1751251005127,7.18096737,152.51,152.48,5.2446]
[1751251005331,1.25384163,152.49,152.48,5.2446]
[1751251005725,7.18096737,152.51,152.48,5.2446]
[1751251006023,1.25384163,152.49,152.48,5.2446]
[1751251006927,7.18096737,152.51,152.48,5.2446]
[1751251007230,1.25384163,152.49,152.48,7.18166737]
[1751251007429,1.25384163,152.5,152.48,7.18166737]
[1751251008130,5.2439,152.51,152.48,7.18166737]
[1751251008330,1.25384163,152.51,152.49,1.93706737]
[1751251009229,1.25384163,152.51,152.5,1.93706737]
[1751251009632,1.25384163,152.51,152.5,7.18096737]
[1751251010129,1.25384163,152.51,152.5,5.2439]
[1751251012134,1.25384163,152.51,152.49,7.18136737]
[1751251012432,1.25384163,152.51,152.49,1.93706737]
[1751251013234,1.25384163,152.51,152.5,5.2441]
[1751251013834,1.25384163,152.51,152.49,7.18136737]
[1751251015235,6.49754163,152.51,152.49,1.93706737]
[1751251019636,6.49754163,152.51,152.48,7.18166737]
[1751251020042,6.49754163,152.51,152.48,5.2446]
[1751251020246,6.49754163,152.51,152.48,7.18166737]
[1751251022948,6.49754163,152.51,152.48,13.28730561]
[1751251023347,1.25384163,152.51,152.49,7.18146737]
[1751251025551,6.49754163,152.51,152.49,1.93706737]
[1751251027254,1.25384163,152.51,152.49,7.18146737]
[1751251028354,1.25384163,152.51,152.48,8.04270561]
[1751251028550,1.25384163,152.5,152.47,8.04270561]
[1751251028754,6.49814163,152.5,152.47,13.28760561]
[1751251029052,5.2443,152.5,152.47,13.28760561]
[1751251029854,1.25384163,152.48,152.46,6.10563824]
[1751251030249,1.93706737,152.49,152.46,6.10563824]
[1751251030554,1.25384163,152.48,152.46,6.10563824]
[1751251030952,1.93706737,152.49,152.46,6.10563824]
[1751251031149,1.25384163,152.48,152.46,6.10563824]
[1751251031353,6.49884163,152.48,152.45,45.50850561]
[1751251031547,5.245,152.48,152.45,45.50850561]
[1751251031953,5.245,152.48,152.46,1.93706737]
[1751251033952,7.18166737,152.49,152.46,7.18246737]
[1751251034256,6.10719271,152.55,152.48,1.93706737]
[1751251034553,1.25384163,152.51,152.49,1.93706737]
[1751251036557,1.25384163,152.51,152.49,7.18146737]
[1751251036758,1.25384163,152.51,152.49,39.34146737]
[1751251038658,1.25384163,152.51,152.49,37.4044]
[1751251038852,1.25384163,152.51,152.49,39.34146737]
[1751251040259,6.49754163,152.51,152.49,34.09706737]
[1751251040458,1.25384163,152.5,152.49,32.16]
[1751251042662,1.25384163,152.5,152.48,5.2445]
[1751251043156,1.25384163,152.49,152.47,11.35053824]
[1751251043351,1.25384163,152.49,152.46,40.20270561]
[1751251043756,6.49844163,152.49,152.46,45.44790561]
[1751251044662,6.49844163,152.49,152.47,1.93706737]
[1751251045956,1.25384163,152.49,152.47,7.18206737]
[1751251046161,1.25384163,152.49,152.47,13.28770561]
[1751251046755,1.25384163,152.49,152.47,11.35063824]
[1751251047062,1.25384163,152.48,152.47,1.93706737]
[1751251047258,1.25384163,152.48,152.46,43.51103824]
[1751251047451,5.2446,152.49,152.46,45.44810561]
[1751251047761,1.25384163,152.48,152.46,45.44810561]
[1751251048261,5.2446,152.49,152.46,45.44810561]
[1751251048461,1.25384163,152.48,152.46,45.44810561]
[1751251048661,5.2446,152.49,152.47,1.93706737]
[1751251048962,1.25384163,152.48,152.47,13.28780561]
[1751251049460,1.93706737,152.51,152.47,13.28780561]
[1751251049660,1.25384163,152.48,152.47,13.28780561]
[1751251049855,5.2441,152.5,152.47,13.28780561]
[1751251050053,1.25384163,152.48,152.47,13.28780561]
[1751251050254,5.2441,152.5,152.47,13.28780561]
[1751251050457,1.25384163,152.48,152.47,13.28780561]
[1751251050962,5.2441,152.5,152.47,13.28780561]
[1751251051162,1.25384163,152.48,152.47,13.28780561]
[1751251051360,5.2441,152.5,152.47,13.28780561]
[1751251051564,1.25384163,152.48,152.47,13.28780561]
[1751251051765,5.2441,152.5,152.47,13.28780561]
[1751251051965,1.25384163,152.48,152.47,13.28780561]
[1751251052167,1.93706737,152.53,152.47,8.04270561]
[1751251052362,1.25384163,152.5,152.48,1.93706737]
[1751251052568,1.25384163,152.49,152.47,13.28760561]
[1751251053067,7.18096737,152.51,152.47,11.35053824]
[1751251053268,1.25384163,152.48,152.46,45.44800561]
[1751251053666,7.18136737,152.5,152.46,45.44800561]
[1751251053865,1.25384163,152.48,152.46,45.44800561]
[1751251054066,1.25384163,152.48,152.46,43.51093824]
[1751251054265,5.2444,152.49,152.46,45.44800561]
[1751251054466,1.25384163,152.48,152.46,45.44800561]
[1751251054761,1.25384163,152.48,152.47,1.93706737]
[1751251055069,5.2441,152.5,152.47,7.18216737]
[1751251055369,1.25384163,152.48,152.47,7.18216737]
[1751251056771,5.2441,152.5,152.47,7.18216737]
[1751251057072,1.25384163,152.48,152.47,7.18216737]
[1751251057368,1.25384163,152.48,152.47,1.93706737]
[1751251057567,5.2441,152.5,152.47,1.93706737]
[1751251057768,1.25384163,152.48,152.47,1.93706737]
[1751251057970,5.2441,152.5,152.47,1.93706737]
[1751251058169,1.25384163,152.48,152.47,1.93706737]
[1751251058372,5.2441,152.5,152.47,1.93706737]
[1751251058573,1.25384163,152.48,152.47,1.93706737]
[1751251058773,5.2441,152.5,152.47,1.93706737]
[1751251058976,1.25384163,152.48,152.47,1.93706737]
[1751251059178,5.2441,152.5,152.47,1.93706737]
[1751251059372,1.25384163,152.48,152.47,1.93706737]
[1751251059975,1.25384163,152.48,152.47,7.18216737]
[1751251060172,5.2441,152.5,152.47,13.28780561]
[1751251060367,1.25384163,152.48,152.47,13.28780561]
[1751251060572,1.93706737,152.53,152.47,1.93706737]
[1751251060773,1.25384163,152.5,152.49,1.93706737]
[1751251060973,1.25384163,152.5,152.48,8.04765221]
[1751251061175,1.93706737,152.52,152.48,13.29215221]
[1751251061477,1.25384163,152.5,152.48,13.29215221]
[1751251061874,7.18056737,152.52,152.48,13.29215221]
[1751251062070,1.25384163,152.5,152.48,13.29215221]
[1751251062677,7.18056737,152.52,152.48,13.29215221]
[1751251062874,1.25384163,152.5,152.48,13.29215221]
[1751251063074,7.18056737,152.52,152.48,13.29215221]
[1751251063274,1.25384163,152.5,152.48,13.29215221]
[1751251063474,7.18056737,152.52,152.48,13.29215221]
[1751251063676,1.25384163,152.5,152.48,13.29215221]
[1751251063980,5.2432,152.53,152.49,7.18146737]
[1751251064278,1.25384163,152.5,152.49,7.18146737]
[1751251064773,7.18026737,152.53,152.49,7.18146737]
[1751251065079,1.25384163,152.5,152.49,7.18146737]
[1751251065479,7.18026737,152.53,152.49,7.18146737]
[1751251065679,1.25384163,152.5,152.49,7.18146737]
[1751251065977,1.93706737,152.51,152.48,11.35518484]
[1751251066177,1.25384163,152.5,152.48,13.29225221]
[1751251066379,1.25384163,152.5,152.48,7.18166737]
[1751251066580,6.6755,152.54,152.48,7.18166737]
[1751251066881,1.25384163,152.5,152.48,7.18166737]
[1751251067276,1.93706737,152.52,152.48,7.18166737]
[1751251067472,1.25384163,152.5,152.48,7.18166737]
[1751251067875,1.93706737,152.5,152.47,6.11058484]
[1751251068172,6.6755,152.54,152.46,32.16]
[1751251068173,3.190909,152.48,152.46,32.16]
[1751251068480,1.25384163,152.47,152.46,32.16]
[1751251068777,1.25384163,152.47,152.45,11.35618484]
[1751251068981,1.25384163,152.46,152.45,11.35618484]
[1751251069184,1.25384163,152.46,152.45,5.2456]
[1751251069377,7.18196737,152.48,152.45,5.2456]
[1751251069582,1.25384163,152.46,152.45,5.2456]
[1751251070378,7.18196737,152.48,152.46,5.2453]
[1751251070379,1.93706737,152.48,152.46,5.2453]
[1751251070682,1.25384163,152.47,152.46,8.04765221]
[1751251071586,7.18136737,152.5,152.46,8.04765221]
[1751251071882,1.25384163,152.48,152.46,8.04765221]
[1751251072079,7.18136737,152.5,152.46,7.18236737]
[1751251072279,1.25384163,152.48,152.46,13.29295221]
[1751251072682,5.2444,152.49,152.46,13.29295221]
[1751251072881,1.25384163,152.48,152.46,13.29295221]
[1751251073479,7.18126737,152.5,152.46,13.29295221]
[1751251073679,1.25384163,152.48,152.46,13.29295221]
[1751251073977,7.18126737,152.5,152.46,13.29295221]
[1751251074175,1.25384163,152.48,152.46,13.29295221]
[1751251074478,7.18126737,152.5,152.46,13.29295221]
[1751251074677,1.25384163,152.48,152.46,13.29295221]
[1751251074883,7.18126737,152.5,152.46,13.29295221]
[1751251075084,1.25384163,152.48,152.46,13.29295221]
[1751251075285,7.18126737,152.5,152.46,7.18236737]
[1751251075486,1.25384163,152.48,152.46,13.29295221]
[1751251076086,7.18126737,152.5,152.46,13.29295221]
[1751251076386,1.25384163,152.48,152.46,13.29295221]
[1751251076687,1.25384163,152.48,152.47,5.2451]
[1751251076888,7.18126737,152.5,152.47,5.2451]
[1751251077087,1.25384163,152.48,152.47,5.2451]
[1751251077585,7.18126737,152.5,152.46,11.35588484]
[1751251077790,1.25384163,152.47,152.45,6.11058484]
[1751251078090,1.25384163,152.47,152.45,8.04765221]
[1751251078487,1.25384163,152.47,152.45,13.29325221]
[1751251079192,1.25384163,152.47,152.45,7.18266737]
[1751251080083,1.25384163,152.47,152.45,13.29325221]
[1751251081186,1.25384163,152.47,152.45,8.04765221]
[1751251081492,1.25384163,152.47,152.45,1.93706737]
[1751251084494,1.25384163,152.47,152.45,7.18286737]
[1751251087194,5.2447,152.48,152.45,7.18286737]
[1751251087405,1.25384163,152.47,152.45,1.93706737]
[1751251088000,5.2447,152.48,152.45,1.93706737]
[1751251088196,1.25384163,152.47,152.45,7.18266737]
[1751251088399,1.25384163,152.47,152.46,1.93706737]
[1751251088699,1.93706737,152.5,152.46,1.93706737]
[1751251088892,1.25384163,152.47,152.46,1.93706737]
[1751251089296,5.2448,152.48,152.46,1.93706737]
[1751251089497,1.25384163,152.47,152.46,1.93706737]
[1751251090305,1.25384163,152.47,152.46,7.18246737]
[1751251090602,5.2445,152.49,152.46,7.18246737]
[1751251090803,1.25384163,152.47,152.46,7.18246737]
[1751251090999,5.2445,152.49,152.46,7.18246737]
[1751251091306,1.25384163,152.47,152.46,7.18246737]
[1751251091706,5.2445,152.49,152.46,1.93706737]
[1751251091905,1.25384163,152.47,152.46,1.93706737]
[1751251092204,5.2445,152.49,152.46,1.93706737]
[1751251092417,1.25384163,152.47,152.46,1.93706737]
[1751251092698,5.2445,152.49,152.46,7.18246737]
[1751251092904,1.25384163,152.48,152.46,7.18246737]
[1751251093102,1.25384163,152.48,152.47,1.93706737]
[1751251093308,5.2442,152.5,152.47,7.18196737]
[1751251093500,1.25384163,152.49,152.47,7.18196737]
[1751251094008,3.190909,152.48,152.46,6.11058484]
[1751251094207,1.25384163,152.47,152.45,6.11058484]
[1751251094506,1.25384163,152.44,152.43,38.25058484]
[1751251094699,1.25384163,152.44,152.42,8.04901805]
[1751251094899,1.93843321,152.45,152.42,6.11058484]
[1751251095199,38.38719271,152.51,152.4,42.39216998]
[1751251095200,1.25384163,152.43,152.41,6.11058484]
[1751251095405,1.25384163,152.42,152.41,6.11058484]
[1751251095900,3.19227484,152.42,152.4,6.11058484]
[1751251096101,1.25384163,152.41,152.38,8.04901805]
[1751251096302,1.25384163,152.4,152.38,8.04901805]
[1751251096707,5.2472,152.41,152.38,8.04901805]
[1751251097005,1.25384163,152.4,152.38,8.04901805]
[1751251097205,6.50134163,152.4,152.38,8.04901805]
[1751251097407,5.2475,152.4,152.38,8.04901805]
[1751251097809,5.2475,152.4,152.38,6.11058484]
[1751251099210,5.2475,152.4,152.37,397.69908484]
[1751251100306,5.2473,152.41,152.37,397.69908484]
[1751251100510,1.25384163,152.4,152.37,397.69151423]
[1751251101106,5.2473,152.41,152.37,397.69151423]
[1751251101303,1.25384163,152.4,152.37,397.69151423]
[1751251101509,5.2473,152.41,152.37,397.69151423]
[1751251101809,1.25384163,152.4,152.37,397.69151423]
[1751251102001,5.2473,152.41,152.37,397.69151423]
[1751251102198,1.25384163,152.4,152.37,397.69151423]
[1751251102405,5.2473,152.41,152.37,391.5885]
[1751251102601,1.25384163,152.4,152.37,391.5885]
[1751251103003,5.2473,152.41,152.38,5.2482]
[1751251103308,1.25384163,152.4,152.38,5.2482]
[1751251103804,5.2473,152.41,152.38,5.2482]
[1751251104004,1.25384163,152.4,152.38,5.2482]
[1751251104204,5.2473,152.41,152.38,5.2482]
[1751251104404,1.25384163,152.4,152.38,5.2482]
[1751251104604,5.2473,152.41,152.38,5.2482]
[1751251104805,1.25384163,152.4,152.38,5.2482]
[1751251105006,5.2473,152.41,152.38,5.2482]
[1751251105207,1.25384163,152.4,152.38,5.2482]
[1751251105405,5.2473,152.41,152.38,5.2482]
[1751251105607,1.25384163,152.4,152.38,5.2482]
[1751251105912,5.2473,152.41,152.38,5.2482]
[1751251106108,1.25384163,152.4,152.38,5.2482]
[1751251106310,5.2473,152.41,152.38,5.2482]
[1751251106509,1.25384163,152.4,152.38,5.2482]
[1751251106711,5.2473,152.41,152.38,5.2482]
[1751251106910,1.25384163,152.4,152.38,5.2482]
[1751251107513,7.45460464,152.46,152.38,78.63030464]
[1751251107812,2.1951,152.49,152.43,3.03030464]
[1751251108015,1.25384163,152.45,152.44,5.2461]
[1751251108407,5.2449,152.48,152.43,3.03030464]
[1751251108606,1.25384163,152.45,152.44,5.2461]
[1751251109010,5.2449,152.48,152.44,5.2461]
[1751251109207,1.25384163,152.45,152.44,5.2461]
[1751251109615,5.2449,152.48,152.44,5.2461]
[1751251109912,1.25384163,152.45,152.44,5.2461]
[1751251110214,5.2449,152.48,152.44,5.2461]
[1751251110412,1.25384163,152.45,152.44,5.2461]
[1751251110613,5.2449,152.48,152.45,5.2456]
[1751251111219,1.25384163,152.46,152.44,5.246]
[1751251111403,1.25384163,152.45,152.44,5.246]
[1751251111809,5.2449,152.48,152.44,5.246]
[1751251112109,1.25384163,152.45,152.44,5.246]
[1751251112309,5.2449,152.48,152.44,5.246]
[1751251112509,1.25384163,152.45,152.44,5.246]
[1751251112710,5.2449,152.48,152.44,5.246]
[1751251113014,1.25384163,152.45,152.44,5.246]
[1751251113316,7.4396,152.49,152.45,5.2457]
[1751251113505,1.25384163,152.46,152.45,5.2457]
[1751251113710,1.25384163,152.47,152.45,5.2457]
[1751251113909,1.25384163,152.47,152.46,5.2454]
[1751251114109,5.2442,152.5,152.46,5.2454]